Cogmind - Beta 9.2 @@@ ROGUE MODE // 2019.12.09 @ 19:54:14 Player: INSYN Result: Self-destructed Performance ------------- Evolutions (1) 500 Regions Visited (2) 400 Robots Destroyed (8) 40 Value Destroyed (197) 197 Prototype IDs (0) 0 Alien Tech Used (0) 0 Bonus (0) 0 TOTAL SCORE: 1137 Bonus ------- None Cogmind --------- Core Integrity 320/400 Matter 222/300 Energy 139/265 System Corruption 0% Temperature Cool (0) Movement Walking (150) Ox1 Location -9/Materials Parts ------- > --- POWER (1) -------- Improved Ion Engine > --- PROPULSION (2) --- Aluminum Leg > --- UTILITY (3) ------ Small Storage Unit > --- WEAPON (3) ------- Assault Rifle > --- INVENTORY (6) ---- Ion Engine Light Treads Light Treads Light Assault Rifle Light Cannon Plasma Cutter Peak State ------------ > --- POWER ------------ Light Ion Engine > --- PROPULSION ------- Aluminum Leg Aluminum Leg > --- UTILITY ---------- Heat Sink Small Storage Unit Sensor Array > --- WEAPON ----------- EM Shotgun Assault Rifle Plasma Cutter > --- INVENTORY -------- Ion Engine Light Treads Light Treads Light Assault Rifle Light Cannon Plasma Cutter [Rating: 11] Favorites ----------- Power Light Ion Engine Engine Light Ion Engine Propulsion Aluminum Leg Leg Aluminum Leg Utility Small Storage Unit Device Sensor Array Storage Small Storage Unit Weapon Assault Rifle Energy Gun EM Shotgun Ballistic Gun Assault Rifle Ballistic Cannon Light Cannon Special Weapon Plasma Cutter Build | -11 -10 -9 ------- Run | Scr Mat Mat Slots Evolved 2 | . . 2 Power . | . . . Propulsion . | . . . Utility 1 | . . 1 Weapon 1 | . . 1 Parts Attached 14 | 6 3 5 Power 2 | 1 . 1 Engine 2 | 1 . 1 Core . | . . . Reactor . | . . . Propulsion 2 | 2 . . Treads . | . . . Leg 2 | 2 . . Wheel . | . . . Hover . | . . . Flight . | . . . Utility 4 | 1 2 1 Device 2 | . 1 1 Storage 2 | 1 1 . Processor . | . . . Hackware . | . . . Protection . | . . . Artifact . | . . . Weapon 6 | 2 1 3 Energy Gun 1 | . . 1 Energy Cannon . | . . . Ballistic Gun 2 | 2 . . Ballistic Cannon 1 | . 1 . Launcher . | . . . Special Weapon 2 | . . 2 Impact Weapon . | . . . Slashing Weapon . | . . . Piercing Weapon . | . . . Special Melee Weapon . | . . . Unidentified Prototypes . | . . . Parts Lost 5 | . . 5 Power . | . . . Propulsion 1 | . . 1 Utility 2 | . . 2 Weapon 2 | . . 2 Highest Loss Streak 4 | . . 4 Average Slot Usage (%) 92 | . 94 90 Engine 12 | . 14 11 Leg 25 | . 28 22 Device 10 | . 7 14 Storage 13 | . 15 11 Energy Gun 4 | . . 9 Ballistic Gun 13 | . 15 11 Ballistic Cannon 7 | . 12 1 Special Weapon 4 | . . 9 Naked Turns . | . . . Heaviest Build 18 | 10 16 18 Greatest Support 20 | 20 20 20 Greatest Overweight (x) 1 | 1 . 1 Average Overweight (x) . | . . . Largest Inventory Capacity 8 | 6 8 6 Average Capacity 6 | 5 6 6 Most Carried 6 | 6 6 6 Average Carried 5 | 3 5 5 Final Capacity 6 | 6 6 6 Final Carried 6 | 6 6 6 Class Distribution -------------------- 100% | Mutant Dominant Class ---------------- Mutant | -10/Materials Mutant | -9/Materials Resources | -11 -10 -9 ----------- Run | Scr Mat Mat Matter Collected 287 | 85 28 174 Remotely . | . . . Salvage Created 259 | . 28 231 Parts 28 | . 5 23 Haulers Intercepted . | . . . Recyclers Shooed . | . . . Parts Field Recycled . | . . . Retrieved Matter . | . . . Parts Self-Destructed . | . . . Prevented . | . . . Kills | -11 -10 -9 ------- Run | Scr Mat Mat Combat Hostiles Destroyed 6 | . . 6 Guns 6 | . . 6 Classes Destroyed 3 | . 1 2 Watcher 2 | . 2 . Swarmer 3 | . . 3 Sentry 3 | . . 3 Best Kill Streak 2 | . 1 2 Combat Bots Only 2 | . . 2 Max Kills in Single Turn 1 | . 1 1 Gunslinging . | . . . Exploded . | . . . Melee . | . . . Uniques/NPCs Destroyed . | . . . Combat | -11 -10 -9 -------- Run | Scr Mat Mat Damage Taken 479 | . . 479 Core 80 | . . 80 Absorbed by Shields . | . . . Core Remaining (%) 100 | 100 100 . Volleys Fired 34 | . 6 28 Largest 2 | . 1 2 Hottest 45 | . 35 45 Shots Fired 36 | . 6 30 Gun 28 | . 1 27 Cannon 5 | . 5 . Launcher . | . . . Special 3 | . . 3 Kinetic 15 | . 6 9 Thermal 3 | . . 3 Explosive . | . . . Electromagnetic 18 | . . 18 Robot Hit Streak 8 | . 4 8 Robot Miss Streak 6 | . 1 6 Penetration Max . | . . . Secondary Targets . | . . . Shots Hit Robots 21 | . 5 16 Core Hits 14 | . 2 12 Critical Hits 1 | . 1 . Critical Kills 1 | . 1 . Critical Parts Destroyed . | . . . Melee Attacks . | . . . Impact . | . . . Slashing . | . . . Piercing . | . . . Sneak Attacks . | . . . Combat Hostiles . | . . . Follow-up Attacks . | . . . Damage Inflicted 297 | . 79 218 Guns 181 | . 14 167 Cannons 65 | . 65 . Explosions 51 | . . 51 Melee . | . . . Ramming . | . . . Kinetic 113 | . 79 34 Thermal 51 | . . 51 Explosive . | . . . Electromagnetic 133 | . . 133 Impact . | . . . Slashing . | . . . Piercing . | . . . Highest Corruption . | . . . Average Corruption . | . . . Corruption Purged . | . . . Overload Shots . | . . . Overflow Damage . | . . . Projectiles . | . . . Explosions . | . . . Melee . | . . . Knockbacks 2 | . 2 . Impact . | . . . Kinetic 2 | . 2 . Secondary . | . . . Self-Inflicted Damage . | . . . Shots . | . . . Rammed . | . . . Targets Rammed . | . . . Kicked . | . . . Crushed . | . . . Highest Temperature 27 | . . 27 Average Temperature 16 | . . 16 Received Heat Transfer 108 | . . 108 Siege Activations . | . . . Robots Corrupted . | . . . Combat Hostiles . | . . . Parts Fried . | . . . Impact Corruptions . | . . . Robots Melted . | . . . Combat Hostiles . | . . . Parts Melted . | . . . Heat Transferred 50 | . . 50 Parts Sabotaged . | . . . Parts Stolen . | . . . Parts Stripped . | . . . Power Chain Reactions 1 | . . 1 Missiles Intercepted . | . . . Alert | -11 -10 -9 ------- Run | Scr Mat Mat Peak Influence 204 | . 47 204 Average Influence 52 | . 23 99 Maximum Alert Level 1 | . . 1 Low Security (%) 96 | 100 100 90 Level 1 3 | . . 9 Level 2 . | . . . Level 3 . | . . . Level 4 . | . . . Level 5 . | . . . High Security . | . . . Max Security . | . . . Squads Dispatched 1 | . . 1 Investigation . | . . . Extermination . | . . . Reinforcement 1 | . . 1 Assault . | . . . Garrison . | . . . Intercept . | . . . Construction Impeded . | . . . Haulers Reinforced . | . . . Stealth | -11 -10 -9 --------- Run | Scr Mat Mat Distress Signals . | . . . Communications Jammed . | . . . Distress Signals . | . . . Times Spotted 14 | . 2 12 Peak Tracking Total 5 | . 1 5 Tactical Retreats . | . . . Traps | -11 -10 -9 ------- Run | Scr Mat Mat Traps Triggered . | . . . Indirectly . | . . . Trap Hack Attempts . | . . . Triggered . | . . . Disarmed . | . . . Reprogrammed . | . . . Reused . | . . . Traps Extracted . | . . . Installed . | . . . Triggered . | . . . Machines | -11 -10 -9 ---------- Run | Scr Mat Mat Machines Disabled . | . . . Max in Single Turn . | . . . Machines Sabotaged . | . . . Garrisons Compromised . | . . . Overloaded Fab Kills . | . . . Fab Network Shutdowns . | . . . Hacking | -11 -10 -9 --------- Run | Scr Mat Mat Machines Accessed 4 | . 4 . Terminals 4 | . 4 . Fabricators . | . . . Repair Stations . | . . . Recycling Units . | . . . Scanalyzers . | . . . Garrison Access . | . . . Total Hacks 13 | . 13 . Successful 7 | . 7 . Failed 6 | . 6 . Catastrophic 1 | . 1 . Database Lockouts . | . . . Manual . | . . . Terminals 13 | . 13 . Fabricators . | . . . Repair Stations . | . . . Recycling Units . | . . . Scanalyzers . | . . . Garrison Access . | . . . Terminal Hacks 7 | . 7 . Record 1 | . 1 . Robot Analysis 1 | . 1 . Emergency Access Points 1 | . 1 . Locate Traps 2 | . 2 . Dispatch Records 1 | . 1 . Zone Layout 1 | . 1 . Fabricator Hacks . | . . . Repair Station Hacks . | . . . Recycling Unit Hacks . | . . . Scanalyzer . | . . . Garrison Access Hacks . | . . . Unauthorized Hacks . | . . . Terminals . | . . . Fabricators . | . . . Repair Stations . | . . . Recycling Units . | . . . Scanalyzers . | . . . Garrison Access . | . . . Data Cores Recovered . | . . . Used . | . . . Hacking Detections 3 | . 3 . Full Trace Events . | . . . Feedback Events . | . . . Feedback Blocked . | . . . Robot Schematics Acquired . | . . . Robots Built . | . . . Matter . | . . . Time . | . . . Total Robot Build Rating . | . . . Part Schematics Acquired . | . . . Parts Built . | . . . Matter . | . . . Time . | . . . Total Part Build Rating . | . . . Parts Repaired . | . . . Time . | . . . Parts Recycled . | . . . Recycled Matter . | . . . Retrieved Matter . | . . . Retrieved Components . | . . . Parts Scanalyzed . | . . . Part Schematics Acquired . | . . . Parts Damaged . | . . . Bothacking | -11 -10 -9 ------------ Run | Scr Mat Mat Used RIF Installer . | . . . Robots Hacked . | . . . Non-combat . | . . . Combat . | . . . Robot Hacks Applied . | . . . Relay Couplers Released . | . . . Robots Rewired . | . . . Allies Hacked . | . . . Hacks Repelled . | . . . Allies | -11 -10 -9 -------- Run | Scr Mat Mat Total Allies . | . . . Largest Group . | . . . Highest-Rated Group . | . . . Highest-Rated Ally . | . . . Total Orders . | . . . Ally Attacks . | . . . Total Damage . | . . . Kills . | . . . Allies Corrupted . | . . . Allies Melted . | . . . Intel | -11 -10 -9 ------- Run | Scr Mat Mat Robot Analysis Total 1 | . 1 . Derelict Logs Recovered . | . . . Drone Launches . | . . . Drone Recoveries . | . . . Exploration | -11 -10 -9 ------------- Run | Scr Mat Mat Turns Passed 748 | 56 388 304 Spaces Moved 420 | 38 241 141 Core 12 | 12 . . Treads . | . . . Legs 408 | 26 241 141 Wheels . | . . . Hover . | . . . Flight . | . . . Fastest Speed 50 | 50 120 120 Average Speed 119 | 105 120 121 Slowest Speed 150 | 120 120 150 Overloaded Moves . | . . . Propulsion Burnouts . | . . . Robots Hopped . | . . . Cave-ins Triggered . | . . . Exploration Rate (%) 14 | 4 27 13 Regions Visited 2 Branch Regions . Pre-discovered Areas . | . . . Known Exits Taken . | . . . Unknown Exits Taken 2 | 1 1 . Scrap Searched . | . . . Spaces Dug . | . . . Terrain Destroyed 10 | . . 10 Melee . | . . . Projectile . | . . . AOE 10 | . . 10 Actions | -11 -10 -9 --------- Run | Scr Mat Mat Total 626 | 53 333 240 Wait 142 | . 81 61 Move 418 | 37 240 141 Hop . | . . . Pick Up 13 | 10 1 2 Fast Attach 6 | 2 2 2 Attach 4 | 4 . . Detach . | . . . Swap 4 | . 1 3 Drop 5 | . 2 3 Fire 34 | . 6 28 Melee . | . . . Ram . | . . . Kick . | . . . Crush . | . . . Escape Stasis . | . . . Rewire . | . . . Trap . | . . . Miscellaneous . | . . . Route ------- -11/Scrapyard -10/Materials -9/Materials History --------- Turn | Location | Event 9 | -11/Scrapyard | Discovered new exit (range 15) 57 | -11/Scrapyard | Entered Materials 194 | -10/Materials | Discovered new exit (range 18) 311 | -10/Materials | Build established: Mutant 445 | -10/Materials | Entered another Materials area 445 | -9/Materials | Evolved 2 slots: Utility x1, Weapon x1 749 | -9/Materials | Self-destructed Last Messages --------------- 00693_ Door malfunctions. 00694_ S-10 Pest destroyed. 00696_ K-01 Serf cleans the Nuclear Reactor. 00697_ Acquired 18 matter. 00701_ Acquired 20 matter. 00701_ U-05 Engineer lays Concrete. 00707_ S-10 Pest destroyed. 00708_ R-06 Scavenger collects Lgt. Armor Plating. 00709_ Acquired 16 matter. 00711_ R-06 Scavenger collects Heat Sink. 00714_ R-06 Scavenger collects Flight Unit. 00716_ Dropped Lgt. Ion Engine. 00717_ R-06 Scavenger collects Lgt. Assault Rifle. 00721_ K-01 Serf collects debris. 00731_ U-05 Engineer lays Concrete. 00736_ Plasma Cutter destroyed. 00738_ EM Shotgun destroyed. 00739_ Sensor Array destroyed. 00740_ Aluminum Leg destroyed. 00743_ G-34 Mercenary destroyed. Map ----- +----------------------------------------------------+ | ???????????????????????????????? | | ???????????????????????????????? | | ???????????????????????????????? | | ???????????????????????????????? | | ???????????????????????????????? | | ???????????????????????????????? | | ???????????????????????????????? | | ???????????????????????????????? | | ???????????????????????????????? | | ?? ? ????????????????????????? | | ?? T ????????????????????????? | | ?? ????????????????????????? | | ?? ????????????????????????? | | ??# #????????????????????????? | | ??# #????????????????????????? | | ??# +????????????????????????? | | ??# #????????????????????????? | | ??# %#????????????????????????? | | ??# *#????????????????????????? | | ??# #????????????????????????? | | ??# #????????????????????????? | | ??# #????????????????????????? | | ### ss###??????????????????????? | | # #??????????????????????? | | # #??????????????????????? | | # *[ @#########??????????????? | | # !% %= +??????????????? | | # = *########???????????????? | | # #??????????????????????? | | # = #??????????????????????? | | ### =u########?????????????????? | | ??# *## ! #?????????????????? | | ??# =*## !#?????????????????? | | ??# ## #?????????????????? | | ?## [ ## """ #?????????????????? | | ?# # """ #?????????????????? | | ?# # """ #?????????????????? | | ?# / #?????????????????? | | ?# # """ #?????????????????? | | ?# # """ #?????????????????? | | ?### ### """ #?????????????????? | | ??##=### #?????????????????? | | ??##[!"# #?????????????????? | | ?##!!["#######?????????????????? | | ?#"= [##???????????????????????? | | ?#" "#???????????????????????? | | ?#"" #"#???????????????????????? | | ?### ###???????????????????????? | | ???# #############?????????????? | | ???# #?????????????? | +----------------------------------------------------+ Best States ------------- Heat Dissipation 38 Energy Generation 10 Energy Capacity 265 Matter Stores 217 Matter Capacity 300 Sight Range 16 Robot Scan Range 10 Terrain Scan Density 10 Evasion (%) 50 Item Schematics ----------------- None Robot Schematics ------------------ None Fabricated ------------ Nothing Alien Tech Used ----------------- None Achievements -------------- None Challenges ------------ None Game ------ Seed PowerBarrageMachine Manual? 0 Play Time 00:14:38 Cumulative 4.3 hours Start 2019.12.09 @ 19:17:58 End 2019.12.09 @ 19:54:14 Sessions 1 Manual Loads 0 Difficulty Rogue Special Mode None Game No. 8 Rogue 8 Adventurer 0 Explorer 0 Win Type - Total 0 Types 0/0/0/0/0/0/0 Lore% 2 Gallery% 9 Achievement% 9 Wizard Run 0 Options --------- ASCII 0 Keyboard 0 Movement Mouse Keybinds 0 Fullscreen 2 Font 18/SmallcapsGlow Map View 76x50 Tactical HUD 1 Map Filters NONE Filters NONE Steam 1 RUN: bf6f7ef8-457b-4246-9719-4cd34f8f3bea